fUST/lending_fUST_20241129
["ID","MTS","AMOUNT","RATE_DAILY","PERIOD"]
[343689825,1732866643439,-518.31,0.00028767,3]
[343689826,1732866643448,-518.31,0.00028767,3]
[343689827,1732866643458,-164.662936,0.00028767,7]
[343689828,1732866643468,-518.31,0.00028767,3]
[343689829,1732866643477,-518.31,0.00028767,3]
[343689830,1732866643487,-518.31,0.00028767,3]
[343689831,1732866643496,-518.31,0.00028767,3]
[343689832,1732866643507,-518.31,0.00028767,3]
[343689833,1732866643517,-518.31,0.00028767,3]
[343689834,1732866643527,-518.31,0.00028767,3]
[343689835,1732866643536,-518.31,0.00028767,3]
[343689836,1732866643546,-518.31,0.00028767,3]
[343689837,1732866643555,-518.31,0.00028767,3]
[343689838,1732866643565,-518.31,0.00028767,3]
[343689839,1732866643574,-518.31,0.00028767,3]
[343689840,1732866643584,-518.31,0.00028767,3]
[343689841,1732866643593,-518.31,0.00028767,3]
[343689842,1732866643603,-518.31,0.00028767,3]
[343689843,1732866643612,-518.31,0.00028767,3]
[343689844,1732866643621,-518.31,0.00028767,3]
[343689845,1732866643631,-518.31,0.00028767,3]
[343689846,1732866643641,-518.31,0.00028767,3]
[343689847,1732866643650,-518.31,0.00028767,3]
[343689848,1732866643659,-518.31,0.00028767,3]
[343689849,1732866643669,-518.35357325,0.00028767,3]
[343689850,1732866643678,-500.0,0.00028767,3]
[343689851,1732866643687,-500.0,0.00028767,3]
[343689852,1732866643696,-504.54460128,0.00028767,3]
[343689853,1732866643705,-500.0,0.00028767,3]
[343689854,1732866643715,-500.0,0.00028767,3]
[343689855,1732866643724,-500.0,0.00028767,3]
[343689856,1732866643733,-500.0,0.00028767,3]
[343689857,1732866643743,-500.0,0.00028767,3]
[343689858,1732866643752,-521.2729381,0.00028767,3]
[343689859,1732866643761,-605.53152632,0.00028767,3]
[343689860,1732866643770,-500.0,0.00028767,3]
[343689861,1732866643779,-500.0,0.00028767,3]
[343689862,1732866643788,-500.0,0.00028767,3]
[343689863,1732866643797,-500.0,0.00028767,3]
[343689864,1732866643806,-500.0,0.00028767,3]
[343689865,1732866643815,-1412.94,0.00028767,3]
[343689866,1732866643824,-500.0,0.00028767,3]
[343689867,1732866643834,-1412.94,0.00028767,3]
[343689868,1732866643843,-500.0,0.00028767,3]
[343689869,1732866643853,-1412.94,0.00028767,3]
[343689870,1732866643861,-500.0,0.00028767,3]
[343689871,1732866643870,-500.0,0.00028767,3]
[343689872,1732866643879,-1412.94,0.00028767,3]
[343689873,1732866643889,-500.0,0.00028767,3]
[343689874,1732866643898,-500.0,0.00028767,3]
[343689875,1732866643907,-1412.94,0.00028767,3]
[343689876,1732866643917,-500.0,0.00028767,3]
[343689877,1732866643926,-306.53329588,0.00028767,3]
[343689878,1732866643935,-1412.94,0.00028767,3]
[343689879,1732866643945,-500.0,0.00028767,3]
[343689880,1732866643954,-1412.94,0.00028767,3]
[343689881,1732866643963,-569.08459725,0.00028767,3]
[343689882,1732866643972,-1412.94,0.00028767,3]
[343689883,1732866643981,-1412.94,0.00028767,3]
[343689884,1732866643990,-151.0,0.00028767,7]
[343689885,1732866644000,-1412.94,0.00028767,3]
[343689886,1732866644013,-1412.94,0.00028767,3]
[343689887,1732866644027,-1412.94,0.00028767,3]
[343689888,1732866644036,-151.0,0.00028767,7]
[343689889,1732866644046,-1412.94,0.00028767,3]
[343689890,1732866644055,-151.0,0.00028767,7]
[343689891,1732866644064,-500.0,0.00028767,3]
[343689892,1732866644073,-1412.94,0.00028767,3]
[343689893,1732866644082,-1412.94,0.00028767,3]
[343689894,1732866644091,-503.1519637,0.00028767,3]
[343689895,1732866644100,-151.0,0.00028767,7]
[343689896,1732866644110,-1412.94,0.00028767,3]
[343689897,1732866644119,-1412.94,0.00028767,3]
[343689898,1732866644127,-1412.94,0.00028767,3]
[343689899,1732866644137,-1412.94,0.00028767,3]
[343689900,1732866644147,-151.0,0.00028767,7]
[343689901,1732866644156,-1412.94,0.00028767,3]
[343689902,1732866644165,-151.0,0.00028767,7]
[343689903,1732866644175,-1412.94,0.00028767,3]
[343689904,1732866644185,-1412.94,0.00028767,3]
[343689905,1732866644194,-151.0,0.00028767,7]
[343689906,1732866644203,-1412.94,0.00028767,3]
[343689907,1732866644213,-151.0,0.00028767,7]
[343689908,1732866644222,-1413.13525194,0.00028767,3]
[343689909,1732866644232,-151.0,0.00028767,7]
[343689910,1732866644242,-500.0,0.00028767,3]
[343689911,1732866644254,-500.0,0.00028767,3]
[343689912,1732866644263,-500.0,0.00028767,3]
[343689913,1732866644273,-500.0,0.00028767,3]
[343689914,1732866644283,-500.0,0.00028767,3]
[343689915,1732866644292,-500.0,0.00028767,3]
[343689916,1732866644359,-500.0,0.00028767,3]
[343689917,1732866644368,-500.0,0.00028767,3]
[343689918,1732866644379,-500.0,0.00028767,3]
[343689919,1732866644389,-500.0,0.00028767,3]
[343689920,1732866644398,-500.0,0.00028767,3]
[343689921,1732866644408,-522.66934215,0.00028767,3]
[343689922,1732866644417,-500.0,0.00028767,3]
[343689923,1732866644427,-500.0,0.00028767,3]
[343689924,1732866644436,-500.0,0.00028767,3]
[343689925,1732866644446,-506.10671448,0.00028767,3]
[343689926,1732866644455,-542.42047537,0.00028767,3]
[343689927,1732866644464,-500.0,0.00028767,3]
[343689928,1732866644475,-515.82527512,0.00028767,3]
[343689929,1732866644485,-500.0,0.00028767,3]
[343689930,1732866644495,-500.0,0.00028767,3]
[343689931,1732866644507,-500.0,0.00028767,3]
[343689932,1732866644516,-500.0,0.00028767,3]
[343689933,1732866644525,-503.19184388,0.00028767,3]
[343689934,1732866644535,-536.6121478,0.00028767,3]
[343689935,1732866644545,-500.0,0.00028767,3]
[343689936,1732866644555,-500.0,0.00028767,3]
[343689937,1732866644564,-500.0,0.00028767,3]
[343689938,1732866644573,-500.0,0.00028767,3]
[343689939,1732866644582,-500.0,0.00028767,3]
[343689940,1732866644592,-500.0,0.00028767,3]
[343689941,1732866644602,-500.0,0.00028767,3]
[343689942,1732866644611,-500.0,0.00028767,3]
[343689943,1732866644620,-500.0,0.00028767,3]
[343689944,1732866644629,-419.99214372,0.00028767,3]
[343689945,1732866644638,-500.0,0.00028767,3]
[343689946,1732866644647,-500.0,0.00028767,3]
[343689947,1732866644656,-500.0,0.00028767,3]
[343689948,1732866644666,-500.0,0.00028767,3]
[343689949,1732866644675,-500.0,0.00028767,3]
[343689950,1732866644684,-500.0,0.00028767,3]
[343689951,1732866644693,-500.0,0.00028767,3]
[343689952,1732866644703,-500.0,0.00028767,3]
[343689953,1732866644712,-502.40251578,0.00028767,3]
[343689954,1732866644721,-500.0,0.00028767,3]
[343689955,1732866644730,-202.30206343,0.00028767,3]
[343689956,1732866644739,-500.0,0.00028767,3]
[343689957,1732866644749,-500.0,0.00028767,3]
[343689958,1732866644765,-500.0,0.00028767,3]
[343689959,1732866644774,-500.0,0.00028767,3]
[343689960,1732866644784,-500.0,0.00028767,3]
[343689961,1732866644793,-506.88839428,0.00028767,3]
[343689962,1732866644803,-501.00740909,0.00028767,3]
[343689963,1732866644811,-278.37048341,0.00028767,3]
[343689964,1732866644831,-505.02457506,0.00028767,3]
[343689965,1732866644842,-503.40722023,0.00028767,3]
[343689966,1732866644852,-500.0,0.00028767,3]
[343689967,1732866644862,-500.0,0.00028767,3]
[343689968,1732866644872,-500.0,0.00028767,3]
[343689969,1732866644884,-293.8283521,0.00028767,3]
[343689970,1732866644895,-500.0,0.00028767,3]
[343689971,1732866644905,-550.75321354,0.00028767,3]
[343689972,1732866644915,-1809.53,0.00028767,3]
[343689973,1732866644925,-1809.53,0.00028767,3]
[343689974,1732866644935,-1809.53,0.00028767,3]
[343689975,1732866644945,-1809.53,0.00028767,3]
[343689976,1732866644956,-1809.53,0.00028767,3]
[343689977,1732866644965,-500.0,0.00028767,3]
[343689978,1732866644975,-1809.53,0.00028767,3]
[343689979,1732866644985,-500.0,0.00028767,3]
[343689980,1732866644994,-1809.53,0.00028767,3]
[343689981,1732866645007,-500.0,0.00028767,3]
[343689982,1732866645016,-1809.53,0.00028767,3]
[343689983,1732866645026,-500.0,0.00028767,3]
[343689984,1732866645035,-500.0,0.00028767,3]
[343689985,1732866645045,-1809.53,0.00028767,3]
[343689986,1732866645054,-500.0,0.00028767,3]
[343689987,1732866645064,-500.0,0.00028767,3]
[343689988,1732866645073,-1809.53,0.00028767,3]
[343689989,1732866645083,-465.32087675,0.00028767,3]
[343689990,1732866645093,-500.0,0.00028767,3]
[343689991,1732866645102,-500.0,0.00028767,3]
[343689992,1732866645111,-500.0,0.00028767,3]
[343689993,1732866645121,-1809.53,0.00028767,3]
[343689994,1732866645131,-1809.53,0.00028767,3]
[343689995,1732866645141,-534.25751824,0.00028767,3]
[343689996,1732866645151,-1809.53,0.00028767,3]
[343689997,1732866645161,-1809.53,0.00028767,3]
[343689998,1732866645171,-550.27,0.00028767,3]
[343689999,1732866645182,-1809.53,0.00028767,3]
[343690000,1732866645192,-1809.53,0.00028767,3]
[343690001,1732866645202,-550.27,0.00028767,3]
[343690002,1732866645212,-1809.53,0.00028767,3]
[343690003,1732866645221,-550.27,0.00028767,3]
[343690004,1732866645231,-1809.53,0.00028767,3]
[343690005,1732866645240,-550.27,0.00028767,3]
[343690006,1732866645249,-1809.53,0.00028767,3]
[343690007,1732866645261,-550.27,0.00028767,3]
[343690008,1732866645271,-1809.53,0.00028767,3]
[343690009,1732866645280,-550.27,0.00028767,3]
[343690010,1732866645290,-550.27,0.00028767,3]
[343690011,1732866645300,-1809.53,0.00028767,3]
[343690012,1732866645312,-550.27,0.00028767,3]
[343690013,1732866645322,-1809.53,0.00028767,3]
[343690014,1732866645331,-550.27,0.00028767,3]
[343690015,1732866645340,-1809.53,0.00028767,3]
[343690016,1732866645351,-550.27,0.00028767,3]
[343690017,1732866645360,-1809.57848729,0.00028767,3]
[343690018,1732866645370,-550.27,0.00028767,3]
[343690019,1732866645380,-550.27,0.00028767,3]
[343690020,1732866645391,-550.27,0.00028767,3]
[343690021,1732866645402,-550.27,0.00028767,3]
[343690023,1732866645411,-550.27,0.00028767,3]
[343690025,1732866645421,-550.27,0.00028767,3]
[343690027,1732866645432,-550.27,0.00028767,3]
[343690028,1732866645443,-550.27,0.00028767,3]
[343690030,1732866645453,-692.96,0.00028767,3]
[343690032,1732866645463,-692.96,0.00028767,3]
[343690034,1732866645472,-550.27,0.00028767,3]
[343690035,1732866645481,-692.96,0.00028767,3]
[343690036,1732866645492,-550.27,0.00028767,3]
[343690037,1732866645502,-692.96,0.00028767,3]
[343690038,1732866645513,-550.27,0.00028767,3]
[343690039,1732866645596,-692.96,0.00028767,3]
[343690040,1732866645606,-550.27,0.00028767,3]
[343690041,1732866645615,-692.96,0.00028767,3]
[343690043,1732866645625,-550.27,0.00028767,3]
[343690044,1732866645634,-502.42028047,0.00028767,3]
[343690045,1732866645646,-692.96,0.00028767,3]
[343690046,1732866645655,-550.38040183,0.00028767,3]
[343690048,1732866645664,-692.96,0.00028767,3]
[343690049,1732866645674,-692.96,0.00028767,3]
[343690050,1732866645683,-692.96,0.00028767,3]
[343690051,1732866645692,-692.96,0.00028767,3]
[343690053,1732866645702,-692.96,0.00028767,3]
[343690055,1732866645711,-692.96,0.00028767,3]
[343690057,1732866645720,-692.96,0.00028767,3]
[343690058,1732866645729,-692.96,0.00028767,3]
[343690060,1732866645737,-692.96,0.00028767,3]
[343690061,1732866645747,-500.0,0.00028767,3]
[343690062,1732866645758,-692.96,0.00028767,3]
[343690063,1732866645767,-512.43621498,0.00028767,3]
[343690064,1732866645777,-500.0,0.00028767,3]
[343690065,1732866645786,-692.96,0.00028767,3]
[343690066,1732866645795,-500.0,0.00028767,3]
[343690067,1732866645805,-692.96,0.00028767,3]
[343690068,1732866645816,-692.96,0.00028767,3]
[343690069,1732866645826,-500.0,0.00028767,3]
[343690070,1732866645837,-500.0,0.00028767,3]
[343690071,1732866645847,-692.96,0.00028767,3]
[343690072,1732866645856,-500.0,0.00028767,3]
[343690073,1732866645866,-692.96,0.00028767,3]
[343690074,1732866645875,-500.0,0.00028767,3]
[343690075,1732866645884,-500.0,0.00028767,3]
[343690076,1732866645893,-692.96,0.00028767,3]
[343690077,1732866645902,-500.0,0.00028767,3]
[343690078,1732866645911,-500.0,0.00028767,3]
[343690079,1732866645920,-692.96699395,0.00028767,3]
[343690080,1732866645930,-264.02510916,0.00028767,3]
[343690082,1732866645939,-500.0,0.00028767,3]
[343690083,1732866645948,-500.0,0.00028767,3]
[343690084,1732866645957,-500.0,0.00028767,3]
[343690085,1732866645966,-500.0,0.00028767,3]
[343690086,1732866645975,-422.34647697,0.00028767,3]
[343690087,1732866646294,-77.65352303,0.00028767,3]
[343690088,1732866646304,-500.0,0.00028767,3]
[343690089,1732866646316,-500.0,0.00028767,3]
[343690090,1732866646325,-638.0191645,0.00028767,3]
[343690091,1732866646336,-500.0,0.00028767,3]
[343690092,1732866646345,-217.35729054,0.00028767,3]
[343690093,1732866646356,-500.0,0.00028767,3]
[343690094,1732866646364,-500.0,0.00028767,3]
[343690095,1732866646374,-500.0,0.00028767,3]
[343690096,1732866646385,-500.0,0.00028767,3]
[343690097,1732866646394,-500.0,0.00028767,3]
[343690098,1732866646404,-500.0,0.00028767,3]
[343690099,1732866646413,-500.0,0.00028767,3]
[343690100,1732866646423,-535.54853407,0.00028767,3]
[343690101,1732866646432,-523.21501863,0.00028767,3]
[343690102,1732866646442,-500.0,0.00028767,3]
[343690103,1732866646451,-500.0,0.00028767,3]
[343690104,1732866646460,-500.0,0.00028767,3]
[343690105,1732866646471,-500.51335346,0.00028767,3]
[343690106,1732866646480,-500.0,0.00028767,3]
[343690107,1732866646489,-118.98611577,0.00028767,3]
[343690108,1732866647198,-381.01388423,0.00028767,3]
[343690109,1732866647209,-194.72456195,0.00028767,3]
[343690110,1732866647219,-500.0,0.00028767,3]
[343690111,1732866647228,-500.0,0.00028767,3]
[343690112,1732866647238,-500.0,0.00028767,3]
[343690113,1732866647247,-500.0,0.00028767,3]
[343690114,1732866647258,-500.0,0.00028767,3]
[343690115,1732866647267,-500.0,0.00028767,3]
[343690116,1732866647277,-500.0,0.00028767,3]
[343690117,1732866647286,-500.0,0.00028767,3]
[343690118,1732866647295,-500.0,0.00028767,3]
[343690119,1732866647304,-500.0,0.00028767,3]
[343690120,1732866647317,-500.0,0.00028767,3]
[343690121,1732866647327,-500.0,0.00028767,3]
[343690122,1732866647336,-500.0,0.00028767,3]
[343690123,1732866647345,-500.0,0.00028767,3]
[343690124,1732866647355,-210.99335854,0.00028767,3]
[343690125,1732866647364,-500.0,0.00028767,3]
[343690126,1732866647374,-500.0,0.00028767,3]
[343690127,1732866647384,-500.0,0.00028767,3]
[343690128,1732866647393,-500.0,0.00028767,3]
[343690129,1732866647403,-510.006581,0.00028767,3]
[343690130,1732866647412,-500.0,0.00028767,3]
[343690131,1732866647421,-297.69938486,0.00028767,3]
[343690132,1732866647430,-151.0,0.00028767,7]
[343690133,1732866647439,-151.0,0.00028767,7]
[343690134,1732866647447,-151.0,0.00028767,7]
[343690135,1732866647457,-504.94183079,0.00028767,3]
[343690136,1732866647466,-151.0,0.00028767,7]
[343690137,1732866647475,-151.0,0.00028767,7]
[343690138,1732866647484,-151.0,0.00028767,7]
[343690139,1732866647494,-500.0,0.00028767,3]
[343690140,1732866647505,-500.0,0.00028767,3]
[343690141,1732866647514,-276.92600202,0.00028767,3]
[343690142,1732866647543,-605.07,0.00028757,10]
[343690143,1732866647552,-2058.60021054,0.00028766,2]
[343690144,1732866647562,-223.07399798,0.00028767,3]
[343690145,1732866647571,-422.7124565,0.00028767,3]
[343690146,1732866703530,7.31287563,0.00013973,2]
[343690147,1732866703553,156.8,0.00013973,2]
[343690148,1732866703578,4.79086737,0.00013973,2]
[343690155,1732867430469,168.903743,0.00013973,2]
[343690157,1732867486235,1169.27083333,0.00021933,2]
[343690160,1732867531160,-250.77276895,0.00025205,2]
[343690161,1732867531180,-167.773353,0.00027047,2]
[343690162,1732867531204,-500.0,0.00027449,2]
[343690163,1732867531224,-212.0,0.0002818,22]
[343690164,1732867531246,-157.81680745,0.00028573,2]
[343690165,1732867531267,-1473.93,0.000286,2]
[343690166,1732867531289,-500.87166258,0.000286,10]
[343690167,1732867531313,-142.35169602,0.000286,10]
[343690171,1732867644577,-741.51325714,0.000235,2]
[343690172,1732867646867,-427.75757619,0.000235,2]
[343690173,1732867646887,-2380.1842283,0.00025749,2]
[343690174,1732867646907,-970.209712,0.00025955,2]
[343690175,1732867646934,-150.0,0.00027444,2]
[343690176,1732867646954,-150.0,0.00027793,2]
[343690177,1732867646973,-150.0,0.0002803,2]
[343690178,1732867646996,-176.37689464,0.00028427,2]
[343690179,1732867647016,-300.0,0.00028582,2]
[343690180,1732867647037,-300.0,0.00028582,2]
[343690181,1732867647057,-1687.0,0.00028582,2]
[343690182,1732867647080,-5690.50106575,0.00028583,2]
[343690183,1732867647100,-357.64830398,0.000286,10]
[343690184,1732867647124,-476.62,0.00028657,3]
[343690185,1732867647147,-151.0,0.00028663,6]
[343690186,1732867647168,-5000.0,0.00028666,2]
[343690187,1732867647190,-3580.31612576,0.00028666,2]
[343690188,1732867647212,-319.26186143,0.00028666,2]
[343690189,1732867647234,-538.26547538,0.00028666,2]
[343690190,1732867647257,-500.0,0.00028666,2]
[343690191,1732867647282,-497.13892486,0.00028666,2]
[343690192,1732867647303,-500.0,0.00028666,2]
[343690193,1732867647323,-500.0,0.00028666,2]
[343690194,1732867647343,-418.3,0.00028666,2]
[343690195,1732867647365,-299.36914611,0.00028666,2]
[343690196,1732867647393,-500.0,0.00028666,2]
[343690197,1732867647415,-500.0,0.00028666,2]
[343690198,1732867647437,-500.0,0.00028666,2]
[343690199,1732867647460,-500.0,0.00028666,2]
[343690200,1732867647482,-500.0,0.00028666,2]
[343690201,1732867647504,-500.0,0.00028666,2]
[343690202,1732867647525,-500.0,0.00028666,2]
[343690203,1732867647546,-500.0,0.00028666,2]
[343690204,1732867647567,-500.0,0.00028666,2]
[343690205,1732867647588,-500.0,0.00028666,2]
[343690206,1732867647609,-500.0,0.00028666,2]
[343690207,1732867647633,-500.0,0.00028666,2]
[343690208,1732867647655,-500.0,0.00028666,2]
[343690209,1732867647675,-500.0,0.00028666,2]
[343690210,1732867647695,-500.0,0.00028666,2]
[343690211,1732867647719,-500.0,0.00028666,2]
[343690212,1732867647739,-294.83920914,0.00028666,2]
[343690213,1732867647760,-500.0,0.00028666,2]
[343690214,1732867647781,-500.0,0.00028666,2]
[343690215,1732867647803,-516.99103887,0.00028666,2]
[343690216,1732867647823,-500.0,0.00028666,2]
[343690217,1732867647845,-500.0,0.00028666,2]
[343690218,1732867647866,-274.42680939,0.00028666,2]
[343690219,1732867647887,-500.0,0.00028666,2]
[343690220,1732867647908,-599.15915552,0.00028666,2]
[343690221,1732867647934,-312.00571076,0.00028667,2]
[343690222,1732867647954,-167.748,0.00028667,20]
[343690223,1732867647979,-666.0,0.00028667,2]
[343690224,1732867648004,-31554.40574292,0.00028667,2]
[343690225,1732867648041,-14427.60230078,0.00028667,2]
[343690265,1732867835526,-1169.27083333,0.00027222,2]
[343690266,1732867835535,-7123.1689028,0.00027382,2]
[343690267,1732867835647,-1908.52046105,0.000285,2]
[343690268,1732867835657,-211.38908244,0.000285,10]
[343690269,1732867835667,-300.0,0.00028565,2]
[343690270,1732867835676,-300.0,0.00028565,2]
[343690271,1732867835685,-521.41408993,0.00028566,2]
[343690272,1732867835694,-590.70668722,0.00028566,2]
[343690273,1732867835704,-344.35101728,0.00028566,2]
[343690274,1732867835714,-621.92855802,0.00028567,2]
[343690275,1732867835723,-962.99281431,0.00028567,2]
[343690276,1732867835735,-532.47464187,0.00028567,2]
[343690277,1732867835745,-92750.56557583,0.00028567,2]
[343690278,1732867835755,-1495.46745614,0.00028592,2]
[343690279,1732867835767,-1326.54,0.000286,2]
[343690280,1732867835777,-1495.46745614,0.00028617,2]
[343690281,1732867835787,-1495.46745614,0.00028642,2]
[343690282,1732867835796,-398.60008435,0.00028667,2]
[343690283,1732867835807,-1495.46745614,0.00028667,2]
[343690284,1732867835817,-176017.9919563,0.00028667,2]
[343690285,1732867835827,-666.0,0.00028667,2]
[343690286,1732867835840,-501.15609388,0.00028673,5]
[343690287,1732867835851,-466.89794477,0.00028673,2]
[343690288,1732867835861,-500.26757662,0.00028673,5]
[343690289,1732867835870,-500.0,0.00028673,5]
[343690290,1732867835879,-1509.74934757,0.00028766,2]
[343690291,1732867835889,-151.0,0.00028767,7]
[343690292,1732867835899,-151.0,0.00028767,7]
[343690293,1732867835908,-151.0,0.00028767,7]
[343690294,1732867835918,-151.0,0.00028767,7]
[343690295,1732867835927,-151.0,0.00028767,7]
[343690296,1732867835937,-151.0,0.00028767,7]
[343690297,1732867835946,-165.091149,0.00028767,7]
[343690298,1732867835955,-287.96673,0.00028767,7]
[343690299,1732867835966,-503.57016091,0.00028767,3]
[343690300,1732867835975,-506.07188528,0.00028767,3]
[343690301,1732867835983,-501.66731362,0.00028767,3]
[343690302,1732867835993,-506.61316923,0.00028767,3]
[343690303,1732867836002,-320.96642956,0.00028767,3]
[343690304,1732867836011,-500.73222577,0.00028767,3]
[343690305,1732867836021,-500.96923531,0.00028767,3]
[343690306,1732867836030,-500.0,0.00028767,3]
[343690307,1732867836039,-501.60765403,0.00028767,3]
[343690308,1732867836048,-500.0,0.00028767,3]
[343690309,1732867836058,-500.0,0.00028767,3]
[343690310,1732867836067,-272.71221001,0.00028767,3]
[343690311,1732867836076,-500.0,0.00028767,3]
[343690312,1732867836087,-631.66969552,0.00028767,3]
[343690313,1732867836097,-635.77243667,0.00028767,3]
[343690314,1732867836106,-506.30934424,0.00028767,3]
[343690315,1732867836115,-551.35063613,0.00028767,3]
[343690316,1732867836125,-500.0,0.00028767,3]
[343690317,1732867836134,-500.0,0.00028767,3]
[343690318,1732867836144,-500.0,0.00028767,3]
[343690319,1732867836153,-517.33170943,0.00028767,3]
[343690320,1732867836162,-507.75087524,0.00028767,3]
[343690321,1732867836172,-500.0,0.00028767,3]
[343690322,1732867836181,-500.0,0.00028767,3]
[343690323,1732867836190,-153.02527476,0.00028767,3]
[343690324,1732867836199,-505.22934077,0.00028767,3]
[343690325,1732867836208,-500.0,0.00028767,3]
[343690326,1732867836218,-500.0,0.00028767,3]
[343690327,1732867836227,-500.0,0.00028767,3]
[343690328,1732867836236,-500.0,0.00028767,3]
[343690329,1732867836245,-500.0,0.00028767,3]
[343690330,1732867836254,-501.89708893,0.00028767,3]
[343690331,1732867836264,-500.0,0.00028767,3]
[343690332,1732867836274,-500.0,0.00028767,3]
[343690333,1732867836283,-500.0,0.00028767,3]
[343690334,1732867836293,-500.0,0.00028767,3]
[343690335,1732867836302,-513.00604268,0.00028767,3]
[343690336,1732867836311,-500.0,0.00028767,3]
[343690337,1732867836321,-556.23211671,0.00028767,3]
[343690338,1732867836331,-500.0,0.00028767,3]
[343690339,1732867836342,-503.19591242,0.00028767,3]
[343690340,1732867836351,-510.27938463,0.00028767,3]
[343690341,1732867836360,-501.30988934,0.00028767,3]
[343690342,1732867836369,-500.0,0.00028767,3]
[343690343,1732867836379,-417.03752763,0.00028767,3]
[343690344,1732867836389,-510.8136415,0.00028767,3]
[343690345,1732867836398,-168.38037146,0.00028767,3]
[343690346,1732867836408,-1478.95,0.00028767,3]
[343690347,1732867836418,-1478.95,0.00028767,3]
[343690348,1732867836428,-1478.95,0.00028767,3]
[343690349,1732867836437,-1478.95,0.00028767,3]
[343690350,1732867836446,-1478.95,0.00028767,3]
[343690351,1732867836456,-1478.95,0.00028767,3]
[343690352,1732867836465,-500.0,0.00028767,3]
[343690353,1732867836474,-501.06186578,0.00028767,3]
[343690354,1732867836483,-1478.95,0.00028767,3]
[343690355,1732867836492,-500.0,0.00028767,3]
[343690356,1732867836502,-1478.95,0.00028767,3]
[343690357,1732867836512,-563.77372809,0.00028767,3]
[343690358,1732867836521,-1478.95,0.00028767,3]
[343690359,1732867836531,-1478.95,0.00028767,3]
[343690360,1732867836541,-1478.95,0.00028767,3]
[343690361,1732867836551,-1478.95,0.00028767,3]
[343690362,1732867836560,-1478.95,0.00028767,3]
[343690363,1732867836572,-1478.95,0.00028767,3]
[343690364,1732867836582,-1478.95,0.00028767,3]
[343690365,1732867836593,-503.72778474,0.00028767,3]
[343690366,1732867836602,-1478.95,0.00028767,3]
[343690367,1732867836612,-1478.95,0.00028767,3]
[343690368,1732867836622,-500.0,0.00028767,3]
[343690369,1732867836631,-500.0,0.00028767,3]
[343690370,1732867836640,-1478.95,0.00028767,3]
[343690371,1732867836651,-1478.95,0.00028767,3]
[343690372,1732867836660,-500.0,0.00028767,3]
[343690373,1732867836669,-1478.95,0.00028767,3]
[343690374,1732867836679,-500.0,0.00028767,3]
[343690375,1732867836689,-500.0,0.00028767,3]
[343690376,1732867836699,-1478.95,0.00028767,3]
[343690377,1732867836709,-500.0,0.00028767,3]
[343690378,1732867836719,-507.93056036,0.00028767,3]
[343690379,1732867836728,-1478.95,0.00028767,3]
[343690380,1732867836738,-512.78760422,0.00028767,3]
[343690381,1732867836747,-1478.95,0.00028767,3]
[343690382,1732867836757,-1478.95190687,0.00028767,3]
[343690383,1732867836772,-503.26761631,0.00028767,3]
[343690384,1732867836781,-328.16736859,0.00028767,3]
[343690385,1732867836790,-151.0,0.00028767,7]
[343690386,1732867836800,-151.0,0.00028767,7]
[343690387,1732867836811,-151.0,0.00028767,7]
[343690388,1732867836820,-294.560176,0.00028767,7]